Cogmind - Beta 14 @@@ ROGUE MODE // 2024.12.12 @ 09:23:55 Player: K0T Result: Destroyed by G-47 Trooper with Particle Gun Performance ------------- Evolutions (0) 0 Regions Visited (2) 400 Robots Destroyed (25) 125 Value Destroyed (447) 447 Prototype IDs (0) 0 Alien Tech Used (0) 0 Bonus (0) 0 TOTAL SCORE: 972 Bonus ------- None Cogmind --------- Core Integrity 0/250 Matter 300/300 Energy 147/150 System Corruption 0% Temperature Hot (233) Movement Walking (190) Ox1 Location -10/Mines Parts ------- > --- POWER (1) -------- Light Angular Momentum Engine > --- PROPULSION (2) --- Aluminum Leg Aluminum Leg > --- UTILITY (2) ------ Large Storage Unit Structural Scanner > --- WEAPON (2) ------- Beamcaster Mining Claw > --- INVENTORY (15) --- Improved Heat Sink Improved Heat Sink High-capacity Storage Unit Huge Storage Unit Weight Redist. System Machine Analyzer Sensor Array Signal Interpreter Targeting Computer Hacking Suite Recalibrator Field Recycling Unit (0) Light Assault Rifle Rocket Launcher Rocket Launcher Peak State ------------ > --- POWER ------------ Light Angular Momentum Engine > --- PROPULSION ------- Aluminum Leg Aluminum Leg > --- UTILITY ---------- Large Storage Unit Structural Scanner > --- WEAPON ----------- Beamcaster Mining Claw > --- INVENTORY -------- Improved Heat Sink Improved Heat Sink High-capacity Storage Unit Huge Storage Unit Weight Redist. System Machine Analyzer Sensor Array Signal Interpreter Targeting Computer Hacking Suite Recalibrator Field Recycling Unit Light Assault Rifle Rocket Launcher Rocket Launcher [Rating: 18] Favorites ----------- Power Ion Engine Engine Ion Engine Propulsion Aluminum Leg Leg Aluminum Leg Utility Field Recycling Unit Device Field Recycling Unit Storage Large Storage Unit Weapon Light Assault Rifle Energy Gun Beamcaster Ballistic Gun Light Assault Rifle Slashing Weapon Mining Claw Build | -11 -10 -10 ------- Run | Yrd Mat Min Slots Evolved . | . . . Power . | . . . Propulsion . | . . . Utility . | . . . Weapon . | . . . Parts Attached 22 | 6 13 3 Power 4 | 1 2 1 Engine 4 | 1 2 1 Core . | . . . Reactor . | . . . Propulsion 7 | 2 4 1 Treads . | . . . Leg 7 | 2 4 1 Wheel . | . . . Hover . | . . . Flight . | . . . Utility 6 | 1 5 . Device 3 | . 3 . Storage 3 | 1 2 . Processor . | . . . Hackware . | . . . Protection . | . . . Artifact . | . . . Weapon 5 | 2 2 1 Energy Gun 1 | . . 1 Energy Cannon . | . . . Ballistic Gun 3 | 2 1 . Ballistic Cannon . | . . . Launcher . | . . . Special Weapon . | . . . Impact Weapon . | . . . Slashing Weapon 1 | . 1 . Piercing Weapon . | . . . Special Melee Weapon . | . . . Unidentified Prototypes . | . . . Parts Lost 2 | . 2 . Power 1 | . 1 . Propulsion 1 | . 1 . Utility . | . . . Weapon . | . . . Highest Loss Streak 1 | . 1 . To Critical Strikes . | . . . Average Slot Usage (%) 96 | . 95 100 Engine 14 | . 14 14 Leg 26 | . 26 28 Device 11 | . 11 14 Storage 14 | . 14 14 Ballistic Gun 23 | . 25 7 Slashing Weapon 4 | . 2 14 Peak Build Rating 18 | 6 10 18 Average Rating 9 | 2 8 13 On Entrance 5 | . 6 9 Naked Turns . | . . . Heaviest Build 37 | 10 37 37 Greatest Support 20 | 20 20 20 Greatest Overweight (x) 3 | 1 3 1 Average Overweight (x) . | . . 1 Largest Inventory Capacity 15 | 8 15 15 Average Capacity 12 | 5 11 15 Most Carried 15 | 5 15 15 Average Carried 11 | 4 10 14 Final Capacity 15 | 8 15 15 Final Carried 15 | 2 15 15 Class Distribution -------------------- 93% | Mutant 6% | Scavenger-Mutant Dominant Class ---------------- Mutant | -10/Materials Scavenger-Mutant | -10/Mines Resources | -11 -10 -10 ----------- Run | Yrd Mat Min Matter Collected 647 | 156 443 48 Remotely . | . . . Salvage Created 708 | . 627 81 Parts 52 | . 48 4 Haulers Intercepted 2 | . 2 . Recyclers Shooed 2 | . 2 . Parts Field Recycled . | . . . Retrieved Matter . | . . . Parts Self-Destructed . | . . . Prevented . | . . . Kills | -11 -10 -10 ------- Run | Yrd Mat Min Combat Hostiles Destroyed 17 | . 15 2 Guns 17 | . 15 2 Classes Destroyed 7 | . 7 . Worker 1 | . 1 . Hauler 2 | . 2 . Recycler 1 | . 1 . Mechanic 1 | . 1 . Operator 3 | . 3 . Swarmer 9 | . 9 . Grunt 8 | . 6 2 Best Kill Streak 3 | . 3 1 Combat Bots Only 3 | . 3 1 Max Kills in Single Turn 1 | . 1 1 Gunslinging . | . . . Exploded . | . . . Melee . | . . . Uniques/NPCs Destroyed . | . . . Combat | -11 -10 -10 -------- Run | Yrd Mat Min Hostile Shots Fired 122 | . 109 13 Missed 33 | . 29 4 Damage Taken 868 | . 737 131 Core 258 | . 210 48 Absorbed by Shields . | . . . Core Remaining (%) 100 | 100 . . Volleys Fired 94 | . 80 14 Largest 2 | . 2 1 Hottest 75 | . 40 75 Shots Fired 155 | . 141 14 Gun 155 | . 141 14 Cannon . | . . . Launcher . | . . . Special . | . . . Kinetic 147 | . 141 6 Thermal 8 | . . 8 Explosive . | . . . Electromagnetic . | . . . Robot Hit Streak 13 | . 13 6 Robot Miss Streak 4 | . 4 3 Penetration Max . | . . . Secondary Targets 3 | . 3 . Max Gunslinging Chain 1 | . 1 . Shots Hit Robots 88 | . 81 7 Core Hits 42 | . 40 2 Critical Kills . | . . . Critical Parts Destroyed . | . . . Critical Strikes . | . . . Melee Attacks 1 | . 1 . Impact . | . . . Slashing 1 | . 1 . Piercing . | . . . Sneak Attacks 1 | . 1 . Combat Hostiles . | . . . Follow-up Attacks . | . . . Damage Inflicted 978 | . 867 111 Guns 921 | . 810 111 Cannons . | . . . Explosions . | . . . Melee 57 | . 57 . Ramming . | . . . Kinetic 858 | . 810 48 Thermal 63 | . . 63 Explosive . | . . . Electromagnetic . | . . . Impact . | . . . Slashing 57 | . 57 . Piercing . | . . . Highest Corruption . | . . . Average Corruption . | . . . Corruption Purged . | . . . Corruption Blocked . | . . . Overload Shots . | . . . Overflow Damage 17 | . 17 . Projectiles . | . . . Explosions . | . . . Melee 17 | . 17 . Knockbacks . | . . . Impact . | . . . Kinetic . | . . . Secondary . | . . . Self-Inflicted Damage . | . . . Shots . | . . . Rammed . | . . . Targets Rammed . | . . . Kicked . | . . . Crushed . | . . . Highest Temperature 224 | . 30 224 Average Temperature 31 | . 8 120 Received Heat Transfer 291 | . 210 81 Siege Activations . | . . . Robots Corrupted . | . . . Combat Hostiles . | . . . Parts Fried . | . . . Impact Corruptions . | . . . Robots Melted . | . . . Combat Hostiles . | . . . Parts Melted . | . . . Heat Transferred 111 | . . 111 Parts Sabotaged . | . . . Parts Stolen . | . . . Parts Stripped . | . . . Power Chain Reactions . | . . . Alert | -11 -10 -10 ------- Run | Yrd Mat Min Peak Influence 240 | . 240 71 Initial 21 | . . 21 Average 65 | . 69 46 Maximum Alert Level 1 | . 1 . Low Security (%) 93 | 100 92 100 Level 1 6 | . 7 . Level 2 . | . . . Level 3 . | . . . Level 4 . | . . . Level 5 . | . . . High Security . | . . . Max Security . | . . . Squads Dispatched 3 | . 3 . Investigation . | . . . Extermination . | . . . Reinforcement 3 | . 3 . Assault . | . . . Garrison . | . . . Intercept . | . . . Searches Triggered . | . . . Construction Impeded . | . . . Haulers Reinforced . | . . . Active Scanning Responses . | . . . Cargo Convoy Interrupts . | . . . Stealth | -11 -10 -10 --------- Run | Yrd Mat Min Distress Signals 4 | . 4 . Communications Jammed . | . . . Distress Signals . | . . . Times Spotted 37 | . 34 3 Peak Tracking Total 5 | . 5 1 Tactical Retreats 1 | . 1 . Traps | -11 -10 -10 ------- Run | Yrd Mat Min Traps Triggered . | . . . Indirectly . | . . . Trap Hack Attempts . | . . . Triggered . | . . . Disarmed . | . . . Reprogrammed . | . . . Reused . | . . . Traps Extracted . | . . . Installed . | . . . Triggered . | . . . Machines | -11 -10 -10 ---------- Run | Yrd Mat Min Machines Disabled . | . . . Max in Single Turn . | . . . Machines Repaired . | . . . Machines Dismantled . | . . . Machines Sabotaged . | . . . Overloaded Fab Kills . | . . . Hacking | -11 -10 -10 --------- Run | Yrd Mat Min Machines Accessed 4 | . 4 . Terminals 4 | . 4 . Fabricators . | . . . Repair Stations . | . . . Recycling Units . | . . . Scanalyzers . | . . . Garrison Access . | . . . Total Hacks 15 | . 15 . Successful 10 | . 10 . Failed 5 | . 5 . Catastrophic 1 | . 1 . Database Lockouts . | . . . Manual 11 | . 11 . Terminals 15 | . 15 . Fabricators . | . . . Repair Stations . | . . . Recycling Units . | . . . Scanalyzers . | . . . Garrison Access . | . . . Terminal Hacks 4 | . 4 . Branch Access Points 1 | . 1 . Alert Level 1 | . 1 . Unreport Threat 1 | . 1 . Dispatch Records 1 | . 1 . Fabricator Hacks . | . . . Repair Station Hacks . | . . . Recycling Unit Hacks . | . . . Scanalyzer . | . . . Garrison Access Hacks . | . . . Unauthorized Hacks 6 | . 6 . Terminals 6 | . 6 . Track 1 | . 1 . Botnet 4 | . 4 . Operators 1 | . 1 . Fabricators . | . . . Repair Stations . | . . . Recycling Units . | . . . Scanalyzers . | . . . Garrison Access . | . . . Data Cores Recovered . | . . . Used . | . . . Hacking Detections 3 | . 3 . Full Trace Events . | . . . Feedback Events . | . . . Feedback Blocked . | . . . Robot Schematics Acquired . | . . . Robots Built . | . . . Authchips . | . . . Time . | . . . Total Robot Build Rating . | . . . Part Schematics Acquired . | . . . Parts Built . | . . . Authchips . | . . . Time . | . . . Total Part Build Rating . | . . . Parts Repaired . | . . . Time . | . . . Parts Recycled . | . . . Recycled Matter . | . . . Retrieved Matter . | . . . Retrieved Components . | . . . Parts Scanalyzed . | . . . Part Schematics Acquired . | . . . Parts Damaged . | . . . Bothacking | -11 -10 -10 ------------ Run | Yrd Mat Min Used RIF Installer . | . . . Robots Hacked . | . . . Non-combat . | . . . Combat . | . . . Robot Hacks Applied . | . . . Relay Couplers Released . | . . . Fabnet Peak Effective % . | . . . Robots Rewired . | . . . Allies Hacked . | . . . Hacks Repelled . | . . . Allies | -11 -10 -10 -------- Run | Yrd Mat Min Total Allies . | . . . Largest Group . | . . . Highest-Rated Group . | . . . Highest-Rated Ally . | . . . Total Orders . | . . . Ally Attacks . | . . . Total Damage . | . . . Kills . | . . . Allies Corrupted . | . . . Allies Melted . | . . . Intel | -11 -10 -10 ------- Run | Yrd Mat Min Robot Analysis Total . | . . . Derelict Logs Recovered . | . . . Drone Launches . | . . . Drone Recoveries . | . . . Exploration | -11 -10 -10 ------------- Run | Yrd Mat Min Turns Passed 2221 | 57 1931 233 Spaces Moved 1034 | 54 880 100 Core 53 | 53 . . Treads . | . . . Legs 981 | 1 880 100 Wheels . | . . . Hover . | . . . Flight . | . . . Fastest Speed 50 | 50 120 190 Average Speed 181 | 82 186 190 Slowest Speed 330 | 120 330 190 Overloaded Moves . | . . . Propulsion Burnouts . | . . . Robots Hopped . | . . . Cave-ins Triggered . | . . . Exploration Rate (%) 39 | 4 99 15 Regions Visited 2 Branch Regions 1 Pre-discovered Areas . | . . . Known Exits Taken 1 | . 1 . Unknown Exits Taken 1 | 1 . . Scrap Searched . | . . . Spaces Dug . | . . . Terrain Destroyed . | . . . Melee . | . . . Projectile . | . . . AOE . | . . . Terrain Rammed . | . . . Walls Destroyed . | . . . Machines Disabled . | . . . Actions | -11 -10 -10 --------- Run | Yrd Mat Min Total 1251 | 65 1054 132 Wait 54 | . 46 8 Move 1032 | 53 879 100 Hop . | . . . Pick Up 31 | 6 23 2 Fast Attach 5 | 2 2 1 Attach 7 | 4 3 . Detach . | . . . Swap 10 | . 8 2 Drop 17 | . 12 5 Fire 94 | . 80 14 Melee 1 | . 1 . Ram . | . . . Kick . | . . . Crush . | . . . Escape Stasis . | . . . Rewire . | . . . Trap . | . . . Miscellaneous . | . . . Route ------- -11/Scrapyard -10/Materials (discovered 5 exits: [*Mat x3] / *Min x2) -10/Mines History --------- Turn | Location | Event 5 | -11/Scrapyard | Discovered new exit (range 16) 58 | -11/Scrapyard | Entered Materials 238 | -10/Materials | Identified exit to Mines 306 | -10/Materials | Build established: Mutant 351 | -10/Materials | Discovered new exit (range 12) 521 | -10/Materials | Core integrity fell below 50% 974 | -10/Materials | Discovered new exit (range 12) 1411 | -10/Materials | Discovered new exit (range 4) 1658 | -10/Materials | Core integrity fell below 20% 1989 | -10/Materials | Entered Mines 2024 | -10/Mines | Met a Derelict bent on vengeance 2222 | -10/Mines | Destroyed by G-47 Trooper with Particle Gun Last Messages --------------- 02088_ Dropped Heat Sink. 02090_ Acquired Imp. Heat Sink. 02091_ K-01 Serf collects debris. 02095_ Dropped Ion Engine. 02096_ Acquired 10 matter. 02098_ Dropped Heat Sink. 02098_ K-01 Serf collects debris. 02101_ Acquired Imp. Heat Sink. 02104_ Dropped Assault Rifle. 02104_ K-01 Serf collects debris. 02104_ Acquired Beamcaster. 02106_ Acquired 10 matter. 02119_ R-06 Scavenger collects Heat Sink. 02123_ R-06 Scavenger collects Aluminum Leg. 02130_ R-06 Scavenger collects Ion Engine. 02135_ R-06 Scavenger collects Assault Rifle. 02163_ G-34 Mercenary destroyed. 02173_ T-07 Excavator is excavating. 02195_ U-05 Engineer lays Concrete. 02197_ U-05 Engineer builds a Wall. Map ----- +----------------------------------------------------+ | ????????????????????????????????????????? | | ????????????????????????????????????????? | | ????????????????????????????????????????? | | ????????????????????????????????????????? | | ????????????????????????????????????????? | | ????????????????????????????????????????? | | ????????????????????????????????????????? | | ????????????????????????????????????????? | | ????????????????????????????????????????? | | ????????????????????????????????????????? | | ????????????????????????????????????????? | | ???????????????????????#########????????? | | ???????????????????????##########???????? | | ??????????????????????? ###???????? | | ???????????????????????? ##???????? | | ???? ???????????????## ##???????? | | ????## ??????????????### ##???????? | | ????## ????????## ???## ##???????? | | ????## ????????## ##### ##???????? | | ????## ????????## ##### ???????????? | | ????## ########## ### ?????????????? | | ????## ############ ### ##?????????????? | | ????## ## ## #### ## ###??? ###??????? | | # ??? # ##########??????? | | ###??? ## gu####### ##??????? | | ##??# ## ### #### @ t ##??????? | | ##??## ### #### ##### ###??????? | | ##??## ### ####[###############??????? | | ###### ## ###%##?###########???????? | | ###### ## *##???????????????????? | | #######???????????????????? | | ########### ########???????????????????? | | ################????????????????????????? | | ?????????######?????????????????????????? | | ????????????????????????????????????????? | | ????????????????????????????????????????? | | ????????????????????????????????????????? | | ????????????????????????????????????????? | | | | | | | | | | | | | | | | | | | | | | | | | +----------------------------------------------------+ Best States ------------- Heat Dissipation 35 Energy Generation 18 Energy Capacity 250 Matter Stores 300 Matter Capacity 300 Sight Range 16 Terrain Scan Density 10 Evasion (%) 55 Item Schematics ----------------- None Robot Schematics ------------------ None Fabricated ------------ Nothing Alien Tech Used ----------------- None Achievements -------------- None Challenges ------------ None Game ------ Seed SurgeSignalTerrabomb Manual? 0 Play Time 00:19:12 Cumulative 138.0 hours Start 2024.12.12 @ 09:06:09 End 2024.12.12 @ 09:23:55 Sessions 1 Manual Loads 0 Difficulty Rogue Special Mode None Game No. 62 Rogue 49 Adventurer 13 Explorer 0 Win Type - Total 1 Types 1/0/0/0/0/0/0/0/0 Lore% 35 Gallery% 42 Achievement% 39 Wizard Run 0 Options --------- Layout 1 ASCII 0 Keyboard 0 Movement Mouse Keybinds 0 Fullscreen 1 Font 24/Smallcaps Map View 50x35 Zoom Use 0% Tactical HUD 1 Map Filters NONE Filters NONE Steam 0 RUN: 8d576a89-22aa-46a4-af07-4c231b792990